bitfinex/quotes_SOLUSD_20230702
["timestamp","ask_amount","ask_price","bid_price","bid_amount"]
[1688260201808,22.487,18.811,18.805,77.493]
[1688260202110,22.487,18.811,18.805,55.0]
[1688260202431,22.487,18.811,18.802,55.0]
[1688260202819,22.487,18.811,18.801,22.497]
[1688260203035,22.487,18.811,18.802,20.0]
[1688260203225,22.487,18.811,18.795,26.26571297]
[1688260203527,99.9845,18.81,18.795,22.504]
[1688260203733,80.401,18.806,18.795,22.504]
[1688260203931,80.401,18.806,18.79,33.76]
[1688260204232,80.401,18.806,18.788,10.83719922]
[1688260204233,80.401,18.806,18.789,26.10469067]
[1688260204430,169.6272,18.805,18.78,33.39]
[1688260204621,186.14,18.798,18.784,22.518]
[1688260205329,80.435,18.798,18.784,33.35519922]
[1688260205526,80.435,18.798,18.785,10.83719922]
[1688260205735,186.137,18.798,18.786,55.0]
[1688260205924,186.137,18.798,18.782,57.978]
[1688260206130,94.6272,18.797,18.781,10.83719922]
[1688260206431,22.509,18.793,18.782,53.35719922]
[1688260206830,22.509,18.793,18.783,10.83719922]
[1688260207124,22.509,18.793,18.785,22.516]
[1688260207330,22.509,18.793,18.783,22.52]
[1688260207532,22.509,18.793,18.782,20.0]
[1688260207715,22.509,18.793,18.783,22.52]
[1688260208115,22.509,18.793,18.782,22.521]
[1688260208523,22.509,18.793,18.783,55.0]
[1688260208731,22.509,18.793,18.782,33.35819922]
[1688260208921,22.509,18.793,18.782,22.521]
[1688260209121,22.509,18.793,18.784,10.83719922]
[1688260209333,22.509,18.793,18.786,22.516]
[1688260209821,22.509,18.793,18.786,33.35319922]
[1688260210027,22.509,18.793,18.787,55.0]
[1688260210223,105.693,18.8,18.787,77.515]
[1688260210427,97.4212,18.805,18.788,20.0]
[1688260210638,97.4212,18.805,18.793,22.508]
[1688260210639,22.499,18.801,18.793,22.508]
[1688260211127,22.499,18.801,18.796,22.504]
[1688260211337,22.499,18.801,18.797,77.503]
[1688260211630,22.499,18.801,18.798,55.0]
[1688260213015,27.10082495,18.816,18.798,55.0]
[1688260213338,57.86,18.822,18.8,67.48]
[1688260213525,33.51,18.83,18.81,22.487]
[1688260213526,22.477,18.82,18.81,22.487]
[1688260213835,151.0375,18.825,18.811,75.0]
[1688260213836,93.1885,18.825,18.811,75.0]
[1688260214019,22.472,18.824,18.815,22.481]
[1688260214215,22.472,18.824,18.816,55.0]
[1688260214523,22.469,18.826,18.818,22.478]
[1688260214725,22.469,18.826,18.816,10.83719922]
[1688260214916,22.469,18.826,18.817,77.478]
[1688260216239,22.469,18.826,18.817,77.479]
[1688260216448,57.823,18.834,18.817,135.352]
[1688260216734,22.467,18.828,18.82,33.74]
[1688260216923,57.823,18.834,18.82,33.74]
[1688260216924,22.465,18.829,18.824,22.471]
[1688260217440,80.301,18.829,18.817,55.0]
[1688260217733,80.301,18.829,18.818,20.0]
[1688260218032,80.301,18.829,18.817,77.478]
[1688260218033,80.301,18.829,18.816,22.48]
[1688260218822,22.472,18.824,18.815,22.481]
[1688260219024,22.472,18.824,18.816,55.0]
[1688260219540,22.472,18.824,18.816,77.48]
[1688260221135,80.323,18.824,18.816,55.0]
[1688260221821,80.323,18.824,18.811,22.485]
[1688260222023,80.323,18.824,18.812,20.0]
[1688260222438,80.323,18.824,18.812,53.32219922]
[1688260222835,22.472,18.824,18.812,111.21019922]
[1688260223042,22.472,18.824,18.813,55.0]
[1688260223339,22.472,18.824,18.815,22.48]
[1688260223523,22.472,18.824,18.816,55.0]
[1688260224521,22.472,18.824,18.816,77.48]
[1688260224720,22.472,18.824,18.812,20.0]
[1688260224921,22.472,18.824,18.811,42.486]
[1688260226138,22.472,18.824,18.812,55.0]
[1688260226638,22.472,18.824,18.812,88.32219922]
[1688260227031,22.472,18.824,18.813,10.83719922]
[1688260227332,22.472,18.824,18.814,77.482]
[1688260227533,22.472,18.824,18.812,55.0]
[1688260227534,22.472,18.824,18.815,55.0]
[1688260227844,22.472,18.824,18.812,55.0]
[1688260228143,22.472,18.824,18.812,77.485]
[1688260228348,22.472,18.824,18.812,88.32219922]
[1688260228645,22.472,18.824,18.813,10.83719922]
[1688260228848,22.472,18.824,18.816,22.48]
[1688260229027,22.472,18.824,18.817,55.0]
[1688260229429,22.472,18.824,18.817,77.479]
[1688260230927,22.472,18.824,18.817,55.0]
[1688260231130,22.472,18.824,18.816,55.0]
[1688260232937,22.472,18.824,18.816,77.48]
[1688260233747,22.472,18.824,18.816,55.0]
[1688260233929,22.472,18.824,18.815,55.0]
[1688260234845,22.472,18.824,18.815,77.481]
[1688260235847,22.472,18.824,18.815,88.31819922]
[1688260236627,22.472,18.824,18.816,10.83719922]
[1688260236831,22.472,18.824,18.818,22.478]
[1688260237034,22.472,18.824,18.819,55.0]
[1688260237346,91.3622,18.828,18.819,77.477]
[1688260237564,22.471,18.824,18.819,77.477]
[1688260238551,22.471,18.824,18.819,55.0]
[1688260238733,22.471,18.824,18.818,77.478]
[1688260239049,80.322,18.824,18.811,20.0]
[1688260239555,80.322,18.824,18.811,30.83719922]
[1688260239844,80.322,18.824,18.812,22.484]
[1688260240357,80.322,18.824,18.813,55.0]
[1688260241653,91.3622,18.828,18.813,77.484]
[1688260241838,113.8292,18.828,18.813,146.20619922]
[1688260242035,113.8292,18.828,18.814,10.83719922]
[1688260242245,113.8292,18.828,18.818,22.478]
[1688260242457,113.8292,18.828,18.814,10.83719922]
[1688260242650,113.8292,18.828,18.819,55.0]
[1688260243347,113.8292,18.828,18.819,77.477]
[1688260243754,22.467,18.828,18.819,88.31419922]
[1688260243939,22.464,18.83,18.82,53.5]
[1688260244249,22.464,18.83,18.822,22.472]
[1688260244453,22.464,18.83,18.823,55.0]
[1688260245443,22.464,18.83,18.81,59.68248597]
[1688260245747,22.464,18.83,18.814,22.482]
[1688260246755,56.204,18.83,18.809,105.637]
[1688260246933,75.0,18.829,18.809,22.489]
[1688260247140,185.888,18.823,18.807,22.49]
[1688260247341,20.0,18.822,18.807,22.49]
[1688260247654,80.35,18.818,18.806,22.492]
[1688260248151,80.35,18.818,18.802,57.918]
[1688260248152,80.35,18.818,18.802,22.492]
[1688260248350,55.0,18.817,18.802,22.492]
[1688260248554,185.993,18.813,18.796,33.34119922]
[1688260248856,20.0,18.812,18.796,33.34119922]
[1688260249051,80.394,18.808,18.796,33.34119922]
[1688260249250,93.2287,18.807,18.796,33.34119922]
[1688260249449,20.0,18.812,18.796,33.34119922]
[1688260249450,22.493,18.806,18.796,33.34119922]
[1688260250842,22.491,18.808,18.797,20.0]
[1688260251043,22.491,18.808,18.8,56.239]
[1688260251242,22.491,18.808,18.801,55.0]
[1688260251443,22.489,18.809,18.803,22.496]
[1688260251638,95.2261,18.813,18.804,55.0]
[1688260251956,22.49,18.808,18.794,57.941]
[1688260252163,22.49,18.808,18.795,82.05526366]
[1688260252458,22.49,18.808,18.797,22.502]
[1688260252951,22.49,18.808,18.797,33.33919922]
[1688260253546,22.49,18.808,18.798,88.33819922]
[1688260254141,26.39041552,18.822,18.8,33.57]
[1688260254346,57.855,18.823,18.807,186.042]
[1688260254647,22.474,18.822,18.814,22.483]
[1688260254862,115.7785,18.824,18.814,22.483]
[1688260255069,115.7785,18.824,18.815,65.83719922]
[1688260255363,115.7785,18.824,18.816,22.479]
[1688260255667,22.472,18.824,18.815,55.0]
[1688260256169,22.472,18.824,18.815,77.481]
[1688260256353,22.472,18.824,18.815,55.0]
[1688260256862,22.472,18.824,18.815,77.481]
[1688260259366,19.972,18.824,18.815,77.481]
[1688260260475,96.1555,18.835,18.815,88.31819922]
[1688260260679,22.463,18.831,18.815,88.31819922]
[1688260260979,22.463,18.831,18.816,10.83719922]
[1688260261152,22.463,18.831,18.819,22.477]
[1688260261351,22.463,18.831,18.82,55.0]
[1688260261761,22.463,18.831,18.819,22.477]
[1688260261962,22.463,18.831,18.814,10.83719922]
[1688260262166,55.0,18.83,18.812,22.477]
[1688260262358,185.872,18.825,18.812,44.962]
[1688260262563,97.3012,18.824,18.812,22.485]
[1688260262752,22.475,18.821,18.812,22.485]
[1688260263869,22.475,18.821,18.812,33.32219922]
[1688260264065,97.3012,18.824,18.812,33.32219922]
[1688260264066,22.473,18.823,18.813,55.0]
[1688260264257,22.473,18.823,18.816,22.48]
[1688260264463,22.473,18.823,18.817,55.0]
[1688260264655,22.473,18.823,18.818,22.477]
[1688260266659,22.473,18.823,18.816,22.48]
[1688260267465,22.473,18.823,18.817,55.0]
[1688260267770,22.473,18.823,18.818,22.477]
[1688260267952,22.47,18.825,18.819,55.0]
[1688260268152,22.468,18.827,18.821,22.474]
[1688260269583,80.31,18.827,18.813,55.0]
[1688260269766,80.31,18.827,18.815,22.481]
[1688260270069,80.31,18.827,18.811,10.83719922]
[1688260270271,185.906,18.822,18.81,57.899]
[1688260270476,185.906,18.822,18.807,22.49]
[1688260270660,193.51487453,18.822,18.807,22.49]
[1688260270856,193.51487453,18.822,18.805,22.493]
[1688260271077,80.355,18.817,18.805,22.493]
[1688260271872,22.484,18.813,18.805,22.493]
[1688260273083,22.484,18.813,18.806,77.492]
[1688260277283,22.484,18.813,18.801,20.0]
[1688260277483,22.484,18.813,18.797,30.83719922]
[1688260277684,22.484,18.813,18.799,22.5]
[1688260277981,22.484,18.813,18.796,85.19216181]
[1688260277982,22.484,18.813,18.8,20.0]
[1688260278287,22.484,18.813,18.8,42.499]
[1688260279690,22.484,18.813,18.8,20.0]
[1688260279876,22.484,18.813,18.8,22.499]
[1688260280394,22.484,18.813,18.801,20.0]
[1688260280681,22.484,18.813,18.801,42.498]
[1688260281472,22.484,18.813,18.801,20.0]
[1688260281670,22.484,18.813,18.799,42.5]
[1688260281873,22.484,18.813,18.8,77.499]
[1688260282077,22.484,18.813,18.801,42.498]
[1688260282674,22.484,18.813,18.801,53.33519922]
[1688260282889,22.484,18.813,18.802,55.0]
[1688260283089,22.484,18.813,18.805,22.493]
[1688260283289,22.484,18.813,18.806,55.0]
[1688260283486,22.484,18.813,18.806,77.492]
[1688260283994,22.484,18.813,18.801,20.0]
[1688260284292,22.484,18.813,18.802,55.0]
[1688260284795,22.484,18.813,18.804,22.495]
[1688260285481,22.484,18.813,18.802,55.0]
[1688260286282,22.484,18.813,18.801,77.497]
[1688260286479,22.484,18.813,18.802,20.0]
[1688260287374,22.484,18.813,18.802,42.497]
[1688260287578,22.484,18.813,18.806,22.492]
[1688260288083,80.369,18.813,18.802,20.0]
[1688260288291,80.369,18.813,18.798,20.0]
[1688260288694,80.369,18.813,18.8,22.499]
[1688260288897,80.369,18.813,18.801,20.0]
[1688260289992,22.484,18.813,18.801,33.33519922]
[1688260290199,22.484,18.813,18.805,22.493]
[1688260290499,22.484,18.813,18.808,22.49]
[1688260290688,22.484,18.813,18.806,55.0]
[1688260290689,22.484,18.813,18.809,77.489]
[1688260291004,22.484,18.813,18.809,22.489]
[1688260291297,22.485,18.813,18.806,55.0]
[1688260291500,22.485,18.813,18.806,77.491]
[1688260291883,90.5223,18.816,18.806,77.491]
[1688260292099,22.484,18.813,18.806,77.491]
[1688260292291,22.484,18.813,18.804,22.494]
[1688260293517,22.484,18.813,18.805,55.0]
[1688260294202,22.484,18.813,18.804,77.495]
[1688260296704,22.484,18.813,18.804,22.495]
[1688260296892,22.484,18.813,18.805,55.0]
[1688260297403,22.484,18.813,18.805,22.493]
[1688260299100,22.484,18.813,18.801,26.94130592]
[1688260299399,22.484,18.813,18.804,22.494]
[1688260299597,22.484,18.813,18.805,55.0]
[1688260300199,22.484,18.813,18.805,77.493]
[1688260300907,90.5223,18.816,18.805,135.403]
[1688260301692,57.869,18.819,18.805,135.403]
[1688260301893,22.484,18.813,18.805,135.403]
[1688260302202,22.484,18.813,18.805,77.493]
[1688260305203,94.86470859,18.84,18.805,146.24019922]
[1688260305204,57.858,18.822,18.805,146.24019922]
[1688260305514,57.858,18.822,18.806,30.83719922]
[1688260305808,22.48,18.817,18.81,22.487]
[1688260305991,22.48,18.817,18.812,22.484]
[1688260306393,22.48,18.817,18.813,77.484]
[1688260307405,22.478,18.819,18.813,77.484]
[1688260308892,22.478,18.819,18.808,57.858]
[1688260309107,22.478,18.819,18.809,42.488]
[1688260309309,22.478,18.819,18.809,22.488]
[1688260309513,22.478,18.819,18.81,20.0]
[1688260309715,22.478,18.819,18.812,22.484]
[1688260310008,90.5883,18.825,18.812,22.484]
[1688260310414,22.478,18.819,18.814,22.483]
[1688260310612,22.478,18.819,18.815,55.0]
[1688260312301,94.7057,18.824,18.815,77.481]
[1688260312502,7.65328792,18.829,18.815,77.481]
[1688260312799,22.474,18.822,18.815,55.0]
[1688260313003,22.474,18.822,18.81,20.0]
[1688260313004,80.331,18.822,18.81,20.0]
[1688260313209,80.331,18.822,18.807,20.0]
[1688260313802,80.331,18.822,18.808,22.49]
[1688260314111,80.331,18.822,18.809,20.0]
[1688260314316,80.331,18.822,18.811,22.485]
[1688260314498,80.331,18.822,18.812,55.0]
[1688260314701,80.331,18.822,18.814,22.483]
[1688260315310,80.331,18.822,18.809,20.0]
[1688260315517,80.331,18.822,18.809,42.488]
[1688260315813,80.331,18.822,18.809,20.0]
[1688260316204,80.331,18.822,18.809,42.489]
[1688260316515,80.331,18.822,18.803,10.83719922]
[1688260316516,87.98428792,18.822,18.807,22.49]
[1688260317814,87.98428792,18.822,18.808,77.489]
[1688260318314,87.98428792,18.822,18.806,22.491]
[1688260318514,80.358,18.816,18.804,22.494]
[1688260319223,93.3703,18.815,18.804,22.494]
[1688260319402,22.486,18.812,18.804,22.494]
[1688260319804,22.486,18.812,18.805,55.0]
[1688260320503,22.486,18.812,18.8,68.765199]
[1688260320711,22.486,18.812,18.801,20.0]
[1688260321030,22.486,18.812,18.791,53.61]
[1688260321031,55.0,18.811,18.79,33.51]
[1688260321204,55.0,18.811,18.78,419.25327938]
[1688260321205,80.404,18.805,18.794,22.506]
[1688260321600,80.404,18.805,18.791,20.0]
[1688260321601,80.404,18.805,18.792,22.508]
[1688260321806,22.499,18.801,18.792,22.508]
[1688260322008,22.499,18.801,18.79,53.61]
[1688260322213,1.8865428,18.8,18.78,33.65]
[1688260322419,186.176,18.794,18.78,22.523]
[1688260322621,96.1104,18.793,18.78,22.523]
[1688260322917,22.513,18.79,18.78,22.523]
[1688260323103,22.513,18.79,18.78,26.84651522]
[1688260323309,22.513,18.79,18.777,22.526]
[1688260324525,22.513,18.79,18.781,22.522]
[1688260324707,22.513,18.79,18.782,77.52]
[1688260324900,22.513,18.79,18.778,55.0]
[1688260325108,22.513,18.79,18.777,55.0]
[1688260325625,22.513,18.79,18.779,22.523]
[1688260325811,22.513,18.79,18.78,55.0]
[1688260326214,22.513,18.79,18.78,77.523]
[1688260326620,22.513,18.79,18.78,55.0]
[1688260326815,22.513,18.79,18.775,81.51351088]
[1688260327317,55.923,18.79,18.772,22.532]
[1688260329115,55.923,18.79,18.773,77.531]
[1688260329324,22.513,18.79,18.773,77.531]
[1688260329827,22.513,18.79,18.773,135.539]
[1688260330228,22.513,18.79,18.773,213.07]
[1688260330611,22.513,18.79,18.773,77.531]
[1688260331120,22.513,18.79,18.774,10.83719922]
[1688260331319,22.513,18.79,18.775,55.0]
[1688260331618,22.513,18.79,18.775,77.529]
[1688260332228,22.513,18.79,18.775,88.36619922]
[1688260332423,22.513,18.79,18.776,30.83719922]
[1688260332624,22.513,18.79,18.78,56.173]
[1688260332827,22.513,18.79,18.781,20.0]
[1688260333127,22.513,18.79,18.782,55.0]
[1688260333519,22.513,18.79,18.782,88.35719922]
[1688260334114,22.513,18.79,18.782,65.83719922]
[1688260334314,22.513,18.79,18.781,20.0]
[1688260334519,22.513,18.79,18.773,26.03938942]
[1688260334520,22.513,18.79,18.779,33.36119922]
[1688260334729,22.513,18.79,18.78,97.522]
[1688260335027,22.51,18.792,18.781,10.83719922]
[1688260335217,22.51,18.792,18.784,22.518]
[1688260335418,154.1489,18.797,18.784,22.518]
[1688260335419,22.509,18.793,18.784,22.518]
[1688260335725,22.509,18.793,18.783,57.977]
[1688260335726,22.509,18.793,18.787,22.515]
[1688260336124,22.509,18.793,18.788,55.0]
[1688260336323,22.504,18.797,18.788,88.35019922]
[1688260336527,22.499,18.801,18.788,88.35019922]
[1688260336722,22.499,18.801,18.792,22.508]
[1688260336923,22.499,18.801,18.795,22.505]
[1688260337132,22.499,18.801,18.793,10.83719922]
[1688260337323,22.499,18.801,18.794,55.0]
[1688260337834,22.499,18.801,18.793,55.0]
[1688260338741,22.499,18.801,18.793,88.34519922]
[1688260338932,27.11404191,18.815,18.794,10.83719922]
[1688260339140,57.894,18.811,18.799,22.5]
[1688260339430,22.492,18.807,18.799,22.5]
[1688260339734,22.492,18.807,18.8,55.0]
[1688260340736,22.492,18.807,18.799,55.0]
[1688260342020,22.492,18.807,18.798,55.0]
[1688260342436,22.492,18.807,18.798,77.502]
[1688260343932,128.144,18.807,18.788,102.47900218]
[1688260344239,128.144,18.807,18.79,10.83719922]
[1688260344439,20.0,18.806,18.79,10.83719922]
[1688260344641,186.103,18.802,18.788,22.513]
[1688260345431,96.6026,18.801,18.788,22.513]
[1688260345739,22.503,18.798,18.788,22.513]
[1688260346056,22.503,18.798,18.789,55.0]
[1688260346435,22.503,18.798,18.789,77.512]
[1688260346635,22.501,18.8,18.79,44.48719922]
[1688260346845,22.501,18.8,18.794,22.506]
[1688260347047,22.501,18.8,18.795,55.0]
[1688260347345,22.501,18.8,18.795,77.505]
[1688260347729,22.501,18.8,18.795,55.0]
[1688260350342,22.501,18.8,18.795,77.505]
[1688260350749,22.501,18.8,18.795,55.0]
[1688260350958,22.501,18.8,18.791,42.509]
[1688260351628,22.501,18.8,18.791,53.34619922]
[1688260352346,22.501,18.8,18.791,33.34619922]
[1688260352544,22.501,18.8,18.791,22.509]
[1688260352748,22.501,18.8,18.788,10.83719922]
[1688260353844,22.501,18.8,18.791,22.51]
[1688260354149,22.501,18.8,18.792,55.0]
[1688260354949,22.501,18.8,18.792,88.34619922]
[1688260355251,22.501,18.8,18.795,22.505]
[1688260355434,22.501,18.8,18.796,77.504]
[1688260355636,22.498,18.802,18.796,77.504]
[1688260356763,22.498,18.802,18.796,55.0]
[1688260357045,22.498,18.802,18.794,22.506]
[1688260357046,22.498,18.802,18.795,77.505]
[1688260359454,22.498,18.802,18.795,22.505]
[1688260359754,22.498,18.802,18.796,77.504]
[1688260360254,22.498,18.802,18.796,55.0]
[1688260360447,22.498,18.802,18.795,55.0]
[1688260360646,22.498,18.802,18.795,77.505]
[1688260360959,22.495,18.804,18.795,88.34219922]
[1688260366452,22.495,18.804,18.79,91.29]
[1688260366743,22.495,18.804,18.791,42.509]
[1688260367851,22.495,18.804,18.792,55.0]
[1688260368154,22.495,18.804,18.792,77.509]
[1688260368360,57.892,18.811,18.793,30.83719922]
[1688260368545,105.617,18.814,18.793,30.83719922]
[1688260368546,22.491,18.808,18.8,22.499]
[1688260368861,22.491,18.808,18.801,85.83719922]
[1688260369159,22.489,18.81,18.803,22.496]
[1688260369461,22.489,18.81,18.804,55.0]
[1688260369646,22.489,18.81,18.805,22.493]
[1688260369846,22.489,18.81,18.806,55.0]
[1688260370048,22.489,18.81,18.806,77.491]
[1688260370938,22.489,18.81,18.796,57.937]
[1688260371170,22.489,18.81,18.798,22.501]
[1688260371368,22.489,18.81,18.799,55.0]
[1688260371946,22.489,18.81,18.799,77.501]
[1688260372771,22.489,18.81,18.797,22.502]
[1688260373272,56.139,18.81,18.789,48.83938201]
[1688260373458,55.0,18.809,18.789,48.83938201]
[1688260373661,186.086,18.803,18.788,57.945]
[1688260373964,186.149,18.797,18.784,22.518]
[1688260374555,186.149,18.797,18.782,22.52]
[1688260374871,186.149,18.797,18.776,10.83719922]
[1688260375055,186.149,18.797,18.777,20.0]
[1688260375358,186.149,18.797,18.778,10.83719922]
[1688260375557,80.465,18.791,18.78,22.523]
[1688260375763,80.465,18.791,18.781,20.0]
[1688260376357,92.8246,18.79,18.781,20.0]
[1688260376565,22.515,18.788,18.781,42.522]
[1688260376872,22.515,18.788,18.782,55.0]
[1688260377667,22.515,18.788,18.781,30.83719922]
[1688260378356,22.515,18.788,18.774,105.834]
[1688260378357,22.515,18.788,18.774,22.53]
[1688260379562,22.515,18.788,18.775,55.0]
[1688260379763,22.515,18.788,18.778,22.525]
[1688260379956,22.515,18.788,18.779,55.0]
[1688260380464,22.515,18.788,18.78,55.0]
[1688260380658,22.515,18.788,18.778,22.526]
[1688260380859,22.515,18.788,18.779,55.0]
[1688260381273,22.515,18.788,18.779,77.524]
[1688260381970,22.515,18.788,18.779,55.0]
[1688260382275,22.515,18.788,18.781,22.522]
[1688260382473,22.515,18.788,18.782,75.0]
[1688260382777,22.515,18.788,18.783,22.519]
[1688260383071,22.515,18.788,18.784,77.518]
[1688260384576,22.513,18.79,18.784,77.518]
[1688260386472,7.65328792,18.799,18.784,146.32919922]
[1688260386473,57.929,18.799,18.784,146.32919922]
[1688260386770,57.929,18.799,18.785,10.83719922]
[1688260386970,22.506,18.795,18.789,22.512]
[1688260387176,96.7131,18.801,18.79,55.0]
[1688260387177,22.505,18.796,18.79,55.0]
[1688260387385,22.505,18.796,18.791,22.51]
[1688260387675,22.505,18.796,18.785,10.83719922]
[1688260387676,22.505,18.796,18.792,55.0]
[1688260388664,22.505,18.796,18.786,22.516]
[1688260388860,22.505,18.796,18.787,55.0]
[1688260389171,22.505,18.796,18.787,77.515]
[1688260391655,80.442,18.796,18.787,55.0]
[1688260391978,80.442,18.796,18.787,22.515]
[1688260392159,80.442,18.796,18.788,55.0]
[1688260393153,80.442,18.796,18.787,77.515]
[1688260393363,80.442,18.796,18.787,55.0]
[1688260394170,80.442,18.796,18.787,77.515]
[1688260394582,80.442,18.796,18.785,10.83719922]
[1688260394882,80.442,18.796,18.782,10.83719922]
[1688260395882,80.442,18.796,18.783,22.519]
[1688260396064,80.442,18.796,18.784,55.0]
[1688260396578,80.442,18.796,18.784,77.518]
[1688260396982,80.442,18.796,18.784,88.35519922]
[1688260398272,22.505,18.796,18.784,77.518]
[1688260398472,22.505,18.796,18.785,10.83719922]
[1688260398675,22.505,18.796,18.788,22.514]
[1688260399178,22.505,18.796,18.789,77.513]
[1688260400682,22.505,18.796,18.785,10.83719922]
[1688260400979,22.505,18.796,18.78,10.83719922]
[1688260401187,22.505,18.796,18.785,22.517]
[1688260401487,22.505,18.796,18.785,33.35419922]
[1688260401983,22.505,18.796,18.786,55.0]
[1688260402185,22.505,18.796,18.786,77.515]
[1688260404586,22.505,18.796,18.787,10.83719922]
[1688260404788,22.505,18.796,18.789,22.512]
[1688260404983,22.505,18.796,18.79,55.0]
[1688260405282,22.505,18.796,18.79,77.511]
[1688260405687,22.505,18.796,18.79,55.0]
[1688260405886,22.505,18.796,18.789,55.0]
[1688260406118,22.505,18.796,18.788,55.0]
[1688260406899,22.505,18.796,18.789,22.512]
[1688260407078,22.505,18.796,18.79,55.0]
[1688260408597,22.505,18.796,18.79,77.511]
[1688260408890,33.65,18.81,18.791,20.0]
[1688260409092,22.494,18.805,18.796,22.503]
[1688260409283,80.404,18.805,18.797,55.0]
[1688260409484,80.404,18.805,18.792,77.508]
[1688260410683,22.494,18.805,18.792,88.34519922]
[1688260410880,22.494,18.805,18.793,10.83719922]
[1688260411185,22.494,18.805,18.796,22.504]
[1688260411388,22.494,18.805,18.797,55.0]
[1688260412089,22.494,18.805,18.79,100.019]
[1688260412293,115.1096,18.804,18.79,22.511]
[1688260412484,22.5,18.8,18.79,22.511]
[1688260412683,22.5,18.8,18.791,20.0]
[1688260412886,22.5,18.8,18.791,42.51]
[1688260413492,22.5,18.8,18.792,55.0]
[1688260413887,22.5,18.8,18.792,77.509]
[1688260414396,22.5,18.8,18.792,88.34619922]
[1688260418493,22.5,18.8,18.792,77.509]
[1688260418896,22.5,18.8,18.792,22.509]
[1688260419100,22.5,18.8,18.79,45.022]
[1688260419286,22.5,18.8,18.79,22.511]
[1688260420488,22.5,18.8,18.791,77.51]
[1688260421088,22.5,18.8,18.794,22.506]
[1688260421285,22.5,18.8,18.795,77.505]
[1688260421577,22.5,18.8,18.796,55.0]
[1688260422083,22.5,18.8,18.791,33.34619922]
[1688260422284,22.5,18.8,18.792,75.0]
[1688260422691,22.5,18.8,18.789,22.512]
[1688260422985,22.5,18.8,18.79,55.0]
[1688260423497,22.5,18.8,18.79,77.511]
[1688260424394,22.5,18.8,18.79,88.34819922]